bitfinex/quotes_BTCUSD_20240611
["timestamp","ask_amount","ask_price","bid_price","bid_amount"]
[1718102074921,0.388871,67172.0,67171.0,0.21647989]
[1718102075687,0.388871,67172.0,67171.0,0.21847989]
[1718102076327,0.388871,67172.0,67171.0,0.21647989]
[1718102076532,0.389871,67172.0,67171.0,0.21647989]
[1718102079145,0.241,67172.0,67171.0,0.21647989]
[1718102079357,0.241,67172.0,67171.0,0.92737989]
[1718102079759,0.241,67172.0,67171.0,0.85521993]
[1718102080239,0.241,67172.0,67171.0,0.14431993]
[1718102081756,0.02,67169.0,67159.0,0.2245]
[1718102081965,0.02,67169.0,67160.0,0.14431993]
[1718102081966,0.217,67165.0,67160.0,0.14431993]
[1718102082236,0.023,67164.0,67160.0,0.14431993]
[1718102083812,0.024,67164.0,67160.0,0.14431993]
[1718102084271,0.172889,67164.0,67160.0,0.14431993]
[1718102085001,0.171889,67164.0,67160.0,0.14431993]
[1718102085224,0.172889,67164.0,67160.0,0.14631993]
[1718102085430,0.173889,67164.0,67160.0,0.14631993]
[1718102085857,0.023,67164.0,67161.0,0.7085]
[1718102086018,0.023,67164.0,67162.0,0.14431993]
[1718102086223,0.023,67164.0,67162.0,0.34431993]
[1718102086224,0.002,67164.0,67162.0,0.34431993]
[1718102086440,0.002,67164.0,67163.0,1.19061993]
[1718102086648,0.001,67164.0,67163.0,1.19061993]
[1718102086966,0.217,67175.0,67163.0,1.19061993]
[1718102086967,0.217,67175.0,67165.0,0.2]
[1718102087109,0.217,67175.0,67166.0,0.14431993]
[1718102087505,0.217,67175.0,67169.0,0.8897]
[1718102087711,0.217,67175.0,67170.0,0.14431993]
[1718102087922,0.04955961,67177.0,67171.0,0.2]
[1718102088122,0.04955961,67177.0,67169.0,0.6897]
[1718102088123,0.04955961,67177.0,67176.0,0.34431993]
[1718102088374,0.00086,67193.0,67180.0,0.1566]
[1718102088546,0.04962092,67190.0,67182.0,0.6861]
[1718102088761,0.04962092,67190.0,67183.0,0.14431993]
[1718102089329,0.04962092,67190.0,67185.0,0.14431993]
[1718102089507,0.04962092,67190.0,67186.0,0.2]
[1718102089722,0.00086,67193.0,67188.0,0.2]
[1718102089932,0.00086,67193.0,67189.0,0.37121993]
[1718102090138,0.00086,67193.0,67191.0,0.14431993]
[1718102091731,0.00186,67193.0,67191.0,0.14431993]
[1718102092918,0.00186,67193.0,67191.0,0.15431993]
[1718102093323,0.00286,67193.0,67191.0,0.16131993]
[1718102098723,0.00286,67193.0,67192.0,0.34431993]
[1718102098926,0.00286,67193.0,67192.0,0.70841993]
[1718102099573,0.00186,67193.0,67192.0,0.70841993]
[1718102099775,0.00086,67193.0,67192.0,0.70841993]
[1718102099937,0.00186,67193.0,67192.0,0.71841993]
[1718102101247,0.00286,67193.0,67192.0,0.52541993]
[1718102102294,0.00286,67193.0,67192.0,0.16131993]
[1718102102506,0.174685,67193.0,67192.0,0.16131993]
[1718102103132,1.15625587,67193.0,67192.0,0.017]
[1718102103900,1.15525587,67193.0,67192.0,0.007]
[1718102104107,1.15525587,67193.0,67192.0,0.009]
[1718102104308,1.15425587,67193.0,67192.0,0.002]
[1718102104616,0.4369,67182.0,67173.0,0.1566]
[1718102104811,0.023,67181.0,67175.0,0.14431993]
[1718102105033,0.217,67176.0,67175.0,0.14431993]
[1718102105239,0.24,67176.0,67175.0,0.14431993]
[1718102106724,0.241,67176.0,67175.0,0.15231993]
[1718102108108,0.242,67176.0,67175.0,0.15931993]
[1718102108763,0.241,67176.0,67175.0,0.15231993]
[1718102108952,0.242,67176.0,67175.0,0.15731993]
[1718102109182,0.241,67176.0,67175.0,0.14931993]
[1718102109386,0.389862,67176.0,67175.0,0.005]
[1718102109596,0.389862,67176.0,67162.0,0.1566]
[1718102109597,0.241,67176.0,67162.0,0.1566]
[1718102109786,0.148868,67174.0,67167.0,0.14431993]
[1718102110080,0.023,67173.0,67167.0,0.14431993]
[1718102111840,0.024,67173.0,67167.0,0.14431993]
[1718102112462,0.024,67173.0,67168.0,0.2]
[1718102112665,0.025,67173.0,67172.0,0.14431993]
[1718102112836,0.002,67173.0,67172.0,0.14431993]
[1718102113202,0.002,67173.0,67172.0,0.71331993]
[1718102113401,0.002,67173.0,67172.0,1.17281993]
[1718102113402,0.001,67173.0,67172.0,1.17281993]
[1718102113749,0.002,67173.0,67172.0,1.17281993]
[1718102114241,0.001,67173.0,67172.0,1.17281993]
[1718102114473,0.002,67173.0,67172.0,1.17281993]
[1718102114685,0.001,67173.0,67172.0,1.17281993]
[1718102115124,0.023,67175.0,67174.0,0.2]
[1718102115340,0.023,67180.0,67174.0,0.14431993]
[1718102115589,0.023,67180.0,67175.0,0.14431993]
[1718102116018,0.023,67180.0,67176.0,0.2]
[1718102116272,0.023,67180.0,67177.0,0.14431993]
[1718102116921,0.024,67180.0,67177.0,0.14431993]
[1718102117563,0.024,67180.0,67177.0,0.14731993]
[1718102121429,0.172854,67180.0,67177.0,0.14731993]
[1718102121737,0.6464,67179.0,67177.0,0.14731993]
[1718102121969,0.24,67178.0,67177.0,0.14731993]
[1718102122767,0.24,67178.0,67177.0,0.14431993]
[1718102123127,0.24,67178.0,67177.0,0.14731993]
[1718102123980,0.24,67178.0,67177.0,0.14431993]
[1718102124418,0.241,67178.0,67177.0,0.15031993]
[1718102125162,0.24,67178.0,67177.0,0.14431993]
[1718102125365,0.241,67178.0,67177.0,0.14531993]
[1718102125993,0.24,67178.0,67177.0,0.14431993]
[1718102126167,0.388858,67178.0,67177.0,0.14431993]
[1718102126585,0.388858,67178.0,67177.0,0.15231993]
[1718102126788,0.389858,67178.0,67177.0,0.15231993]
[1718102126998,0.389858,67178.0,67177.0,0.14431993]
[1718102126999,0.388858,67178.0,67177.0,0.14431993]
[1718102127422,0.389858,67178.0,67177.0,0.15031993]
[1718102127624,0.388858,67178.0,67177.0,0.78451993]
[1718102127830,0.388858,67178.0,67177.0,0.98451993]
[1718102127831,0.023,67178.0,67177.0,0.98451993]
[1718102128036,0.002,67178.0,67177.0,0.99151993]
[1718102128284,0.002,67178.0,67177.0,1.14211993]
[1718102128486,0.148843,67185.0,67177.0,1.14111993]
[1718102128710,0.148843,67185.0,67179.0,0.14431993]
[1718102129331,0.148845,67184.0,67179.0,0.14431993]
[1718102129551,0.023,67183.0,67179.0,0.14431993]
[1718102130005,0.001,67185.0,67179.0,0.14431993]
[1718102130289,0.217,67181.0,67179.0,0.14431993]
[1718102130430,0.023,67180.0,67179.0,0.14431993]
[1718102131263,0.023,67180.0,67179.0,0.15231993]
[1718102131463,0.023,67182.0,67179.0,0.15331993]
[1718102131659,0.01365991,67180.0,67179.0,0.14531993]
[1718102131870,0.023,67180.0,67179.0,0.14531993]
[1718102132088,0.03665991,67180.0,67179.0,0.14431993]
[1718102132319,0.03665991,67180.0,67179.0,0.14531993]
[1718102132524,0.03765991,67180.0,67179.0,0.14531993]
[1718102132993,0.03765991,67180.0,67179.0,0.34531993]
[1718102133238,0.025,67180.0,67179.0,0.35331993]
[1718102133455,0.002,67180.0,67179.0,0.15331993]
[1718102133661,0.025,67180.0,67179.0,0.35331993]
[1718102135254,0.025,67180.0,67179.0,0.50991993]
[1718102136234,0.04948372,67188.0,67187.0,0.2]
[1718102136441,0.04948372,67188.0,67187.0,0.96871993]
[1718102136646,0.217,67196.0,67187.0,0.96871993]
[1718102136862,0.217,67196.0,67192.0,0.14431993]
[1718102137533,0.59360587,67193.0,67192.0,0.14431993]
[1718102137764,0.81340587,67193.0,67192.0,0.14431993]
[1718102138454,0.83740587,67193.0,67192.0,0.15231993]
[1718102138675,0.84997877,67193.0,67192.0,0.14431993]
[1718102138904,0.84997877,67193.0,67192.0,0.14731993]
[1718102139554,0.84997877,67193.0,67192.0,0.14431993]
[1718102139998,0.85418082,67193.0,67192.0,0.14431993]
[1718102140664,0.87418082,67193.0,67192.0,0.14431993]
[1718102141372,0.85518082,67193.0,67192.0,0.15031993]
[1718102141595,0.87518082,67193.0,67192.0,0.15331993]
[1718102142259,0.87518082,67193.0,67192.0,0.15031993]
[1718102142470,0.85518082,67193.0,67192.0,0.15331993]
[1718102143641,0.87518082,67193.0,67192.0,0.15331993]
[1718102144791,1.17283082,67193.0,67192.0,0.009]
[1718102145042,1.46146548,67193.0,67192.0,0.009]
[1718102145265,1.75911548,67193.0,67192.0,0.009]
[1718102145489,1.82664213,67193.0,67192.0,0.009]
[1718102145711,0.148858,67178.0,67177.0,0.000946]
[1718102145950,0.80475791,67178.0,67177.0,0.14526593]
[1718102146849,0.82475791,67178.0,67177.0,0.14526593]
[1718102147069,0.80475791,67178.0,67177.0,0.14526593]
[1718102148401,0.80475791,67178.0,67177.0,0.14926593]
[1718102148623,0.80575791,67178.0,67177.0,0.15726593]
[1718102148851,0.17695791,67178.0,67177.0,0.15326593]
[1718102149089,0.39395791,67178.0,67177.0,0.15326593]
[1718102149517,0.39295791,67178.0,67177.0,0.14826593]
[1718102150162,0.24409991,67178.0,67177.0,0.14826593]
[1718102150392,0.24409991,67178.0,67177.0,0.76936593]
[1718102150627,0.023,67178.0,67177.0,0.96936593]
[1718102150860,0.217,67184.0,67178.0,0.1566]
[1718102151094,0.217,67184.0,67182.0,0.14431993]
[1718102151528,0.01772712,67183.0,67182.0,0.14431993]
[1718102152212,0.04072712,67183.0,67182.0,0.14431993]
[1718102153087,0.04372712,67183.0,67182.0,0.14431993]
[1718102153448,0.03014431,67183.0,67182.0,0.14431993]
[1718102153650,0.17899131,67183.0,67182.0,0.14431993]
[1718102153869,0.19256969,67183.0,67182.0,0.14431993]
[1718102154293,0.26887839,67183.0,67182.0,0.14431993]
[1718102154488,0.19671843,67183.0,67182.0,0.14431993]
[1718102154689,0.19771843,67183.0,67182.0,0.15331993]
[1718102154886,0.19471843,67183.0,67182.0,0.15331993]
[1718102155289,0.19571843,67183.0,67182.0,0.15931993]
[1718102155510,0.19471843,67183.0,67182.0,0.15031993]
[1718102155708,0.19471843,67183.0,67182.0,0.14431993]
[1718102155891,0.19471843,67183.0,67182.0,0.15031993]
[1718102156308,0.19371843,67183.0,67182.0,0.14731993]
[1718102156687,0.19371843,67183.0,67182.0,0.14431993]
[1718102157928,0.19271843,67183.0,67182.0,0.14431993]
[1718102158155,0.18932412,67183.0,67182.0,0.15031993]
[1718102158277,0.19032412,67183.0,67182.0,0.15331993]
[1718102158489,0.19032412,67183.0,67182.0,0.14731993]
[1718102158490,0.18932412,67183.0,67182.0,0.14731993]
[1718102158689,0.18932412,67183.0,67182.0,0.14931993]
[1718102159091,0.18932412,67183.0,67182.0,0.15131993]
[1718102164943,0.27622412,67183.0,67182.0,0.15131993]
[1718102165138,0.148856,67179.0,67178.0,0.1919]
[1718102165345,0.26261403,67179.0,67178.0,0.21642413]
[1718102166438,0.26361403,67179.0,67178.0,0.22242413]
[1718102167071,0.17671403,67179.0,67178.0,0.22242413]
[1718102167281,0.26361403,67179.0,67178.0,0.22242413]
[1718102168050,0.26461403,67179.0,67178.0,0.23242413]
[1718102168645,0.27838452,67179.0,67178.0,0.23242413]
[1718102169648,0.19148452,67179.0,67178.0,0.23242413]
[1718102169853,0.27838452,67179.0,67178.0,0.23242413]
[1718102171359,0.19148452,67179.0,67178.0,0.23242413]
[1718102171566,0.27838452,67179.0,67178.0,0.23242413]
[1718102172485,0.19148452,67179.0,67178.0,0.23242413]
[1718102172717,0.27838452,67179.0,67178.0,0.23242413]
[1718102173378,0.04262852,67179.0,67178.0,0.61112413]
[1718102173546,0.04262852,67179.0,67178.0,0.96772413]
[1718102173547,0.12952852,67179.0,67178.0,0.96772413]
[1718102173747,0.1119,67179.0,67178.0,0.96772413]
[1718102173967,0.1119,67179.0,67178.0,0.76772413]
[1718102174241,0.1119,67179.0,67178.0,0.96772413]
[1718102174887,0.025,67179.0,67178.0,0.96772413]
[1718102175142,0.0889,67179.0,67178.0,0.96772413]
[1718102175328,0.1119,67179.0,67178.0,0.96772413]
[1718102176127,0.1119,67179.0,67178.0,0.76867013]
[1718102176304,0.1119,67179.0,67178.0,0.04147013]
[1718102176504,0.12572503,67179.0,67178.0,0.04147013]
[1718102176705,0.1119,67179.0,67178.0,0.04147013]
[1718102176931,0.12958532,67179.0,67178.0,0.04147013]
[1718102177307,0.27844132,67179.0,67178.0,0.04147013]
[1718102180371,0.19154132,67179.0,67178.0,0.04147013]
[1718102180594,0.27844132,67179.0,67178.0,0.04147013]
[1718102180849,0.29844132,67179.0,67178.0,0.04147013]
[1718102181111,0.19154132,67179.0,67178.0,0.04147013]
[1718102181319,0.27844132,67179.0,67178.0,0.04147013]
[1718102182333,0.19154132,67179.0,67178.0,0.04147013]
[1718102182510,0.27844132,67179.0,67178.0,0.04147013]
[1718102183509,0.19154132,67179.0,67178.0,0.04147013]
[1718102183733,0.19154132,67179.0,67178.0,0.21637013]
[1718102183947,0.27844132,67179.0,67178.0,0.21637013]
[1718102191715,0.19154132,67179.0,67178.0,0.21637013]
[1718102191926,0.27844132,67179.0,67178.0,0.21637013]
[1718102193711,0.19154132,67179.0,67178.0,0.21637013]
[1718102193876,0.01968532,67179.0,67178.0,0.57297013]
[1718102194092,0.01968532,67179.0,67178.0,0.72307013]
[1718102194299,0.002,67179.0,67178.0,0.92307013]
[1718102194500,0.0889,67179.0,67178.0,0.92307013]
[1718102195078,0.0889,67179.0,67178.0,0.98973695]
[1718102195275,0.002,67179.0,67178.0,0.98973695]
[1718102195477,0.002,67179.0,67178.0,0.92307013]
[1718102195680,0.025,67179.0,67178.0,0.92307013]
[1718102195882,0.023,67179.0,67178.0,0.98172637]
[1718102196081,0.023,67179.0,67178.0,0.98572637]
[1718102196283,0.025,67179.0,67178.0,0.99672637]
[1718102197598,0.025,67179.0,67178.0,1.04105151]
[1718102197848,0.025,67179.0,67178.0,1.04105417]
[1718102198447,0.1119,67179.0,67178.0,1.04105417]
[1718102199114,0.025,67179.0,67178.0,1.14105417]
[1718102199464,0.025,67179.0,67178.0,1.34106092]
[1718102199651,0.025,67179.0,67178.0,1.29676819]
[1718102201113,0.025,67179.0,67178.0,1.34102495]
[1718102201807,0.025,67179.0,67178.0,1.14102495]
[1718102202027,0.025,67179.0,67178.0,1.34102495]
[1718102203346,0.00086,67180.0,67179.0,0.4566]
[1718102203548,0.00086,67180.0,67179.0,1.85396347]
[1718102203675,0.00086,67180.0,67179.0,1.87606328]
[1718102203881,0.00086,67180.0,67179.0,1.78754901]
[1718102204186,0.00086,67180.0,67179.0,1.78751906]
[1718102204483,0.00086,67180.0,67179.0,1.78354975]
[1718102205210,0.00186,67180.0,67179.0,1.79254975]
[1718102205750,0.00086,67180.0,67179.0,1.78354975]
[1718102206176,0.00186,67180.0,67179.0,1.80454975]
[1718102206385,0.00186,67180.0,67179.0,1.91511856]
[1718102206796,0.00186,67180.0,67179.0,1.90258907]
[1718102207449,0.00186,67180.0,67179.0,1.79203459]
[1718102207657,0.00186,67180.0,67179.0,1.49976233]
[1718102207859,0.00186,67180.0,67179.0,1.79306046]
[1718102208193,0.00186,67180.0,67179.0,1.7209005]
[1718102208594,0.0869,67188.0,67187.0,0.8184]
[1718102208793,0.1099,67188.0,67187.0,1.33740237]
[1718102209294,0.1099,67188.0,67187.0,1.13740237]
[1718102209498,0.1099,67188.0,67187.0,1.33740237]
[1718102209701,0.1099,67188.0,67187.0,1.13740237]
[1718102209895,0.1099,67188.0,67187.0,1.14540237]
[1718102210100,0.1099,67188.0,67187.0,1.15640237]
[1718102210302,0.023,67188.0,67187.0,1.35640237]
[1718102213395,0.023,67188.0,67187.0,1.35634822]
[1718102214282,0.0869,67190.0,67189.0,0.4566]
[1718102214458,0.1099,67190.0,67189.0,0.60091993]
[1718102214667,0.12768662,67190.0,67189.0,0.60091993]
[1718102215104,0.04078662,67190.0,67189.0,0.60091993]
[1718102215297,0.12768662,67190.0,67189.0,0.60091993]
[1718102215726,0.12768662,67190.0,67189.0,0.60991993]
[1718102216301,0.1099,67190.0,67189.0,0.60991993]
[1718102216928,0.1099,67190.0,67189.0,0.62191993]
[1718102217341,0.023,67190.0,67189.0,0.80011993]
[1718102217544,0.00068087,67193.0,67192.0,0.2566]
[1718102217765,0.02368087,67193.0,67192.0,0.40091993]
[1718102218175,0.02368087,67193.0,67192.0,0.60091993]
[1718102218843,0.02368087,67193.0,67192.0,0.60991993]
[1718102219716,0.02368087,67193.0,67192.0,0.40991993]
[1718102220333,0.02368087,67193.0,67192.0,0.42191993]
[1718102220979,0.05346011,67193.0,67192.0,0.42191993]
[1718102221383,0.05346011,67193.0,67192.0,0.32191993]
[1718102221602,0.05346011,67193.0,67192.0,0.16531993]
[1718102221827,0.78828511,67193.0,67192.0,0.16531993]
[1718102222466,0.78828511,67193.0,67192.0,0.021]
[1718102222720,0.76828511,67193.0,67192.0,0.15631993]
[1718102222949,0.70636011,67193.0,67192.0,0.15831993]
[1718102223465,0.70636011,67193.0,67192.0,0.15631993]
[1718102223883,0.71036011,67193.0,67192.0,0.15631993]
[1718102224527,0.71036011,67193.0,67192.0,0.14431993]
[1718102224987,0.71036011,67193.0,67192.0,0.14831993]
[1718102225195,0.70636011,67193.0,67192.0,0.14431993]
[1718102225614,0.14636011,67193.0,67192.0,0.14431993]
[1718102226062,0.1461911,67193.0,67192.0,0.14431993]
[1718102226686,0.1401911,67193.0,67192.0,0.14431993]
[1718102227134,0.1401911,67193.0,67192.0,0.14831993]
[1718102228023,0.1401911,67193.0,67192.0,0.15531993]
[1718102229103,0.0532911,67193.0,67192.0,0.15531993]
[1718102229247,0.1401911,67193.0,67192.0,0.15531993]
[1718102230146,0.0532911,67193.0,67192.0,0.15531993]
[1718102230352,0.1401911,67193.0,67192.0,0.15531993]
[1718102230553,0.0532911,67193.0,67192.0,0.15531993]
[1718102230769,0.0532911,67193.0,67192.0,0.31191993]
[1718102230973,0.1401911,67193.0,67192.0,0.31191993]
[1718102234620,0.11041186,67193.0,67192.0,0.31191993]
[1718102235564,0.02351186,67193.0,67192.0,0.31191993]
[1718102235771,0.08741186,67193.0,67192.0,0.31191993]
[1718102235953,0.11041186,67193.0,67192.0,0.31191993]
[1718102236238,0.02351186,67193.0,67192.0,0.31191993]
[1718102236456,0.08741186,67193.0,67192.0,0.31191993]
[1718102236699,0.02351186,67193.0,67192.0,0.61191993]
[1718102237246,0.02351186,67193.0,67192.0,0.41191993]
[1718102237809,0.02351186,67193.0,67192.0,0.40491993]
[1718102238254,0.02351186,67193.0,67192.0,0.41691993]
[1718102238484,0.02351186,67193.0,67192.0,0.40091993]
[1718102238715,0.02351186,67193.0,67192.0,0.60091993]
[1718102238946,0.02451186,67193.0,67192.0,0.62191993]
[1718102239189,0.00151186,67193.0,67192.0,0.42191993]
[1718102239366,0.00151186,67193.0,67192.0,0.41291993]
[1718102239367,0.00051186,67193.0,67192.0,0.41291993]
[1718102239873,0.00151186,67193.0,67192.0,0.42191993]
[1718102241691,0.08841186,67193.0,67192.0,0.42191993]
[1718102241957,0.11141186,67193.0,67192.0,0.42286593]
[1718102243174,0.14114509,67193.0,67192.0,0.42286593]
[1718102244713,0.05424509,67193.0,67192.0,0.42286593]
[1718102245184,0.05026602,67193.0,67192.0,0.42286593]
[1718102245413,0.02451186,67193.0,67192.0,0.42286593]
[1718102247078,0.023,67193.0,67192.0,0.42286593]
[1718102250354,0.023,67193.0,67192.0,0.62286593]
[1718102250561,0.023,67193.0,67192.0,0.66716896]
[1718102250769,0.023,67198.0,67192.0,0.36716896]
[1718102250997,0.023,67198.0,67197.0,0.65810807]
[1718102251248,0.023,67200.0,67197.0,0.65810807]
[1718102251449,0.023,67200.0,67199.0,0.30091993]
[1718102251653,0.023,67200.0,67199.0,0.40091993]
[1718102251826,0.023,67202.0,67199.0,0.40091993]
[1718102252058,0.023,67202.0,67201.0,0.30091993]
[1718102253549,0.023,67202.0,67201.0,0.30891993]
[1718102256489,0.0869,67202.0,67201.0,0.30891993]
[1718102256696,0.1099,67202.0,67201.0,0.30891993]
[1718102257924,0.023,67202.0,67201.0,0.30891993]
[1718102258156,0.0869,67202.0,67201.0,0.30891993]
[1718102258335,0.023,67202.0,67201.0,0.30891993]
[1718102258541,0.1099,67202.0,67201.0,0.30891993]
[1718102259371,0.023,67202.0,67201.0,0.30891993]
[1718102259576,0.023,67208.0,67201.0,0.30891993]
[1718102259780,0.01387684,67202.0,67201.0,0.008]
[1718102259985,0.023,67202.0,67201.0,0.57434559]
[1718102261243,0.023,67205.0,67201.0,0.57434559]
[1718102261363,0.0869,67206.0,67201.0,0.5452]
[1718102261590,0.01385467,67204.0,67201.0,0.5532]
[1718102261791,0.023,67203.0,67201.0,0.5532]
[1718102262026,0.023,67205.0,67201.0,0.5562]
[1718102262433,0.0869,67206.0,67201.0,0.5532]
[1718102262637,0.023,67205.0,67201.0,0.5532]
[1718102262836,0.01385269,67205.0,67201.0,0.5602]
[1718102263038,0.023,67204.0,67201.0,0.5492]
[1718102263488,0.023,67205.0,67201.0,0.5532]
[1718102263835,0.023,67205.0,67201.0,0.5422]
[1718102264040,0.023,67205.0,67201.0,0.5532]
[1718102264971,0.023,67205.0,67201.0,0.5602]
[1718102265430,0.023,67205.0,67201.0,0.5532]
[1718102265807,0.023,67205.0,67201.0,0.5602]
[1718102268951,0.0869,67205.0,67201.0,0.5602]
[1718102269157,0.023,67204.0,67201.0,0.5602]
[1718102270116,0.04930021,67211.0,67201.0,0.5602]
[1718102270117,0.04930021,67211.0,67203.0,0.5513]
[1718102270335,0.04930021,67211.0,67201.0,0.011]
[1718102270336,0.04930021,67211.0,67208.0,0.5236]
[1718102270550,0.00086,67221.0,67209.0,0.51081641]
[1718102270758,0.01209869,67210.0,67209.0,0.51081641]
[1718102271319,0.00086,67221.0,67211.0,0.183]
[1718102271529,0.0869,67220.0,67212.0,0.06975458]
[1718102271697,0.023,67219.0,67212.0,0.06975458]
[1718102272953,0.01615312,67218.0,67212.0,0.07875458]
[1718102273159,0.023,67217.0,67212.0,0.07875458]
[1718102273354,0.023,67217.0,67212.0,0.09075458]
[1718102273561,0.023,67219.0,67213.0,0.5572]
[1718102273762,0.023,67219.0,67214.0,0.14431993]
[1718102274188,0.023,67219.0,67215.0,0.557]
[1718102274466,0.00086,67221.0,67216.0,0.14431993]
[1718102274648,0.00086,67221.0,67218.0,0.5379]
[1718102274854,0.00086,67221.0,67219.0,0.14431993]
[1718102275026,0.00086,67221.0,67220.0,0.5379]
[1718102275250,0.00086,67221.0,67220.0,0.68221993]
[1718102276924,0.00086,67221.0,67220.0,0.69421993]
[1718102278407,0.00086,67221.0,67220.0,1.02561152]
[1718102278529,0.00086,67221.0,67220.0,1.03461152]
[1718102279268,0.00086,67221.0,67220.0,1.02570747]
[1718102279519,0.00086,67221.0,67220.0,1.02270581]
[1718102279964,0.00857,67228.0,67220.0,0.48781078]
[1718102280193,0.00857,67228.0,67221.0,0.47581078]
[1718102280459,0.00857,67228.0,67221.0,0.40191993]
[1718102282469,0.00857,67228.0,67221.0,0.41091993]
[1718102283017,0.01635479,67227.0,67221.0,0.42291993]
[1718102283384,0.00857,67228.0,67221.0,0.42291993]
[1718102283385,0.00857,67228.0,67222.0,0.28853085]
[1718102283587,0.00857,67228.0,67224.0,0.2435]
[1718102283795,0.00857,67228.0,67225.0,0.24431993]
[1718102284010,0.00857,67228.0,67225.0,0.40091993]
[1718102284433,0.00857,67228.0,67226.0,0.00252803]
[1718102284646,0.00857,67228.0,67227.0,0.14431993]
[1718102284854,0.00857,67228.0,67227.0,0.24431993]
[1718102285874,0.00857,67228.0,67227.0,0.25331993]
[1718102286527,0.00857,67228.0,67227.0,0.82491993]
[1718102287463,0.00857,67228.0,67227.0,0.83691993]
[1718102296304,0.00857,67228.0,67227.0,1.14003605]
[1718102297095,0.00857,67228.0,67227.0,1.12803605]
[1718102297500,0.00857,67228.0,67227.0,1.13103605]
[1718102297678,0.00857,67228.0,67227.0,1.04413605]
[1718102297884,0.00857,67228.0,67227.0,1.05313605]
[1718102298086,0.40047,67228.0,67227.0,0.32493605]
[1718102298288,0.40047,67228.0,67227.0,0.26531993]
[1718102298289,0.61357,67228.0,67227.0,0.26531993]
[1718102298549,0.32505928,67228.0,67227.0,0.26531993]
[1718102298737,0.13495928,67228.0,67227.0,0.26531993]
[1718102298910,0.13495928,67228.0,67227.0,0.25631993]
[1718102299314,0.13495928,67228.0,67227.0,0.26531993]
[1718102299518,0.04805928,67228.0,67227.0,0.26531993]
[1718102299960,0.04805928,67228.0,67227.0,0.25331993]
[1718102300737,0.61145928,67228.0,67227.0,0.112]
[1718102300953,0.61145928,67228.0,67221.0,0.01865844]
[1718102301201,0.61145928,67228.0,67227.0,0.009]
[1718102301402,0.69835928,67228.0,67227.0,0.021]
[1718102301616,0.3726,67227.0,67223.0,0.1]
[1718102301827,0.13495928,67228.0,67221.0,0.001]
[1718102301828,0.0869,67224.0,67221.0,0.001]
[1718102302027,0.3726,67222.0,67221.0,0.001]
[1718102302459,0.39970759,67222.0,67221.0,0.001]
[1718102303134,0.81750759,67222.0,67221.0,0.001]
[1718102303565,0.96626759,67222.0,67221.0,0.001]
[1718102303785,0.98946262,67222.0,67221.0,0.001]
[1718102304013,1.18946262,67222.0,67221.0,0.001]
[1718102304208,0.5566,67208.0,67202.0,0.01432029]
[1718102304425,0.0869,67203.0,67202.0,0.01432029]
[1718102304637,0.1099,67203.0,67202.0,0.01432029]
[1718102304853,0.13307745,67203.0,67202.0,0.01432029]
[1718102305703,0.13710021,67203.0,67202.0,0.01432029]
[1718102307005,0.05020021,67203.0,67202.0,0.02632029]
[1718102307213,0.05020021,67203.0,67202.0,0.02332029]
[1718102307605,0.05020021,67203.0,67202.0,0.02632029]
[1718102308051,0.05020021,67203.0,67202.0,0.02332029]
[1718102308237,0.05020021,67203.0,67202.0,0.03532029]
[1718102308644,0.05020021,67203.0,67202.0,0.01432029]
[1718102309058,0.05020021,67203.0,67202.0,0.02332029]
[1718102309713,0.05020021,67203.0,67202.0,0.009]
[1718102310144,0.05020021,67203.0,67202.0,0.021]
[1718102310145,0.19900221,67203.0,67202.0,0.021]
[1718102310348,0.78330221,67203.0,67202.0,0.021]
[1718102311743,1.00330221,67203.0,67202.0,0.021]
[1718102312923,1.00330221,67203.0,67202.0,0.009]
[1718102313338,1.00330221,67203.0,67202.0,0.018]
[1718102313999,1.00330221,67203.0,67202.0,0.009]
[1718102314400,1.00330221,67203.0,67202.0,0.015]
[1718102314604,0.78330221,67203.0,67202.0,0.015]
[1718102314813,1.00330221,67203.0,67202.0,0.015]
[1718102319385,0.78330221,67203.0,67202.0,0.015]
[1718102319597,1.00330221,67203.0,67202.0,0.015]
[1718102320028,0.78330221,67203.0,67202.0,0.015]
[1718102320445,1.00330221,67203.0,67202.0,0.015]
[1718102320649,0.98330221,67203.0,67202.0,0.015]
[1718102320851,1.00330221,67203.0,67202.0,0.015]
[1718102321178,0.78330221,67203.0,67202.0,0.015]
[1718102321388,1.00330221,67203.0,67202.0,0.015]
[1718102321592,0.78330221,67203.0,67202.0,0.015]
[1718102322218,1.00330221,67203.0,67202.0,0.015]
[1718102322419,0.78330221,67203.0,67202.0,0.015]
[1718102324312,0.98330221,67203.0,67202.0,0.015]
[1718102324512,1.00330221,67203.0,67202.0,0.015]
[1718102324693,0.98330221,67203.0,67202.0,0.015]
[1718102324897,1.00330221,67203.0,67202.0,0.015]
[1718102325337,0.98330221,67203.0,67202.0,0.015]
[1718102325541,1.00330221,67203.0,67202.0,0.015]
[1718102326034,0.98330221,67203.0,67202.0,0.015]
[1718102327404,1.00330221,67203.0,67202.0,0.015]
[1718102327780,0.78330221,67203.0,67202.0,0.015]
[1718102328835,0.63450021,67203.0,67202.0,0.015]
[1718102329032,0.72130021,67203.0,67202.0,0.015]
[1718102330029,0.94130021,67203.0,67202.0,0.015]
[1718102330437,1.09010221,67203.0,67202.0,0.015]
[1718102330886,1.29010221,67203.0,67202.0,0.015]
[1718102331749,1.28307561,67203.0,67202.0,0.015]
[1718102332263,1.42739554,67203.0,67202.0,0.015]
[1718102332477,0.961722,67194.0,67193.0,0.000946]
[1718102332676,1.09163691,67194.0,67193.0,0.000946]
[1718102333990,1.09163691,67194.0,67193.0,0.018946]
[1718102334548,1.09163691,67194.0,67193.0,0.009946]
[1718102334766,1.09163691,67194.0,67193.0,0.012946]
[1718102334971,1.09163691,67194.0,67193.0,0.003946]
[1718102336479,0.78483691,67194.0,67193.0,0.003946]
[1718102336643,0.87163691,67194.0,67193.0,0.003946]
[1718102337080,0.87834188,67194.0,67193.0,0.007946]
[1718102337281,1.09834188,67194.0,67193.0,0.007946]
[1718102340487,1.01154188,67194.0,67193.0,0.007946]
[1718102340688,1.09834188,67194.0,67193.0,0.007946]